[Event "26th Womens ECCC 2022"]
[Site "Mayrhofen"]
[Date "2022.10.06"]
[Round "4.13"]
[White "Sukandar, Irine Kharisma"]
[Black "Buksa, Nataliya"]
[Result "1/2-1/2"]
[ECO "D37"]
[WhiteElo "2401"]
[BlackElo "2413"]
[Annotator "TA"]
[PlyCount "100"]
[EventDate "2022.10.03"]
[EventType "team-tourn"]
[EventCountry "AUT"]
[SourceTitle "playchess.com"]
[Source "ChessBase"]
[SourceQuality "1"]
[TimeControl "40/5400+30:1800+30"]

{[%evp 12,100,22,13,17,-8,-10,-18,16,14,14,14,24,21,59,31,37,31,20,35,30,25,40,31,22,27,40,31,45,0,17,0,0,0,0,0,0,0,8,8,8,-1,-2,-15,-4,-6,0,0,0,0,0,0,0,0,0,0,0,0,0,0,0,0,0,0,0,0,0,0,0,0,0,0,0,0,0,0,0,0,0,0,0,0,0,0,0,0,0,0,0,0,0]} 1. d4 {[%emt 0:00:29]} d5 {[%emt 0:00:04]} 2. c4 {[%emt 0:00:16]} e6 {[%emt 0:00:05]} 3. Nf3 {[%emt 0:00:26]} Nf6 {[%emt 0:00:08]} 4. Nc3 {[%emt 0:00:25]} Nbd7 {[%emt 0:00:05]} 5. Bf4 {[%emt 0:00:41]} Bb4 {[%emt 0:00:23]} 6. cxd5 {[%emt 0:02:01]} exd5 {[%emt 0:00:04]} 7. e3 {[%emt 0:07:06]} Ne4 {[%emt 0:02:05] 7...c5 is not played anymore. D35: Queen's Gambit Declined: Exchange Variation.} 8. Qb3 {[%emt 0:09:29]} c5 {[%emt 0:05:45]} 9. dxc5 {[%emt 0:07:41]} Qa5 {[%emt 0:05:01]} (9... Bxc3+ $5 10. bxc3 Ndxc5 $11) 10. a3 {[%emt 0:02:13]} Bxc3+ {[%emt 0:10:49]} 11. bxc3 {[%emt 0:00:08] [#]} O-O $146 {[%emt 0:00:20]} ({Predecessor:} 11... Nxc3 12. Qb4 Qxc5 13. Qxc5 Nxc5 14. Be5 N3e4 15. Bxg7 Rg8 16. Be5 Bd7 17. Nd4 f6 {1-0 (43) Borges Matos,J (2482)-Del Valle Millan,D (1953) La Roda 2007}) 12. Qb4 {[%emt 0:01:28]} Qxc5 {[%emt 0:00:40]} 13. Rc1 {[%emt 0:02:59]} (13. Nd4 $5 {[%cal Rf2f3]}) 13... a5 {[%emt 0:07:08]} 14. Qxc5 {[%emt 0:01:46]} Ndxc5 {[%emt 0:01:22] Pair of Knights!} 15. Nd4 {[%emt 0:02:24] Inhibits Nb3. And now f3 would win.} g5 {[%emt 0:09:22]} 16. Bc7 {[%emt 0:01:02] [#] Strongly threatening f3.} Be6 {[%emt 0:01:17]} 17. f3 {[%emt 0:22:19]} Rfc8 {[%emt 0:00:54]} 18. Bg3 {[%emt 0:02:36]} Nxg3 {[%emt 0:05:28]} 19. hxg3 {[%emt 0:00:02]} a4 {[%emt 0:07:45]} 20. Rd1 {[%emt 0:03:17]} Kg7 {[%emt 0:03:16] The position is equal.} 21. g4 {[%emt 0:01:11]} Nb3 {[%emt 0:05:07]} 22. Nxe6+ {[%emt 0:16:07]} fxe6 {[%emt 0:00:03]} 23. c4 {[%emt 0:00:04]} Ra5 {[%emt 0:02:09]} 24. f4 {[%emt 0:01:05]} d4 {[%emt 0:08:23]} 25. exd4 {[%emt 0:01:44]} gxf4 {[%emt 0:01:16]} 26. Bd3 {[%emt 0:01:33]} h6 {[%emt 0:00:23]} 27. O-O {[%emt 0:02:08]} Nxd4 {[%emt 0:08:13]} 28. Rxf4 {[%emt 0:00:05]} Nc6 {[%emt 0:01:24]} 29. Be4 {[%emt 0:00:51] [#] Black must now prevent Rd7+.} Ne5 {[%emt 0:00:07] Inhibits Rd7+.} 30. Rb1 {[%emt 0:02:30]} Rc7 {[%emt 0:06:29]} 31. Rxb7 {[%emt 0:03:04]} Rac5 {[%emt 0:00:48]} 32. Rb6 {[%emt 0:02:13]} Re7 {[%emt 0:00:04]} 33. Rb5 {[%emt 0:00:33]} Rec7 {[%emt 0:00:03]} 34. Rb6 {[%emt 0:01:22]} Re7 {[%emt 0:00:50]} 35. Rb5 {[%emt 0:01:49]} Rec7 {[%emt 0:00:06]} 36. Rb6 {[%emt 0:00:57]} Rf7 {[%emt 0:03:37]} 37. Rxf7+ {[%emt 0:00:50]} Kxf7 {[%emt 0:00:02]} 38. Rb5 {[%emt 0:00:23]} Rxc4 {[%emt 0:00:26]} 39. Rxe5 $11 {[%emt 0:00:30][%mdl 4096] Endgame KRB-KR} Kf6 {[%emt 0:00:02]} 40. Rh5 {[%emt 0:01:23]} Rxe4 {[%emt 0:00:03]} 41. Rxh6+ {[%emt 0:30:15] KR-KR} Kg5 {[%emt 0:30:03]} 42. Rh8 {[%emt 0:00:00]} Re3 {[%emt 0:00:00]} 43. Rh3 {[%emt 0:00:00]} Rb3 {[%emt 0:00:00]} 44. Kf2 {[%emt 0:00:00]} Kxg4 {[%emt 0:00:00]} 45. Re3 {[%emt 0:00:00]} Kf4 {[%emt 0:00:00]} 46. Rxe6 {[%emt 0:00:00]} Rxa3 {[%emt 0:00:00]} 47. Ke2 {[%emt 0:00:00]} Rg3 {[%emt 0:00:00]} 48. Kd1 {[%emt 0:00:00]} a3 {[%emt 0:00:00][%cal Ba4a3,Ba3a2][%mdl 32]} 49. Kc1 {[%emt 0:00:00]} Rxg2 {[%emt 0:00:00]} (49... a2 $5 50. Kb2 $8 Kf5 $11) 50. Kb1 {[%emt 0:00:00]} a2+ {[%emt 0:00:00] Weighted Error Value: White=0.04 (flawless) /Black=0.04 (flawless)} 1/2-1/2

[Event "26th Womens ECCC 2022"]
[Site "Mayrhofen"]
[Date "2022.10.06"]
[Round "4.14"]
[White "Gaponenko, Inna"]
[Black "Houska, Jovanka"]
[Result "1/2-1/2"]
[ECO "B13"]
[WhiteElo "2348"]
[BlackElo "2354"]
[Annotator "TA"]
[PlyCount "85"]
[EventDate "2022.10.03"]
[EventType "team-tourn"]
[EventCountry "AUT"]
[SourceTitle "playchess.com"]
[Source "ChessBase"]
[SourceQuality "1"]
[TimeControl "40/5400+30:1800+30"]

{[%evp 13,85,14,19,9,11,0,10,-6,-2,-11,-4,-8,0,-17,-4,-55,-33,-81,-77,-87,-81,-87,-73,-83,-74,-125,-122,-133,-126,-138,-138,-136,-79,-79,-83,-70,-50,-40,-49,-57,-26,-37,-27,-39,-10,-28,0,0,0,0,16,8,0,0,62,0,0,0,0,0,0,0,0,0,0,0,0,0,0,0,0,0,0,0]} 1. e4 {[%emt 0:00:02]} c6 {[%emt 0:00:11]} 2. d4 {[%emt 0:00:08]} d5 {[%emt 0:00:04]} 3. exd5 {[%emt 0:00:12]} cxd5 {[%emt 0:00:05]} 4. Bd3 {[%emt 0:00:04]} Nc6 {[%emt 0:01:38]} 5. c3 {[%emt 0:00:06]} Qc7 {[%emt 0:01:39]} 6. h3 {[%emt 0:00:13]} g6 {[%emt 0:02:22]} 7. Nf3 {[%emt 0:00:09]} Nf6 {[%emt 0:02:54][%cal Bg8f6,Bf6d7,Bd7b6][%mdl 32]} 8. O-O {[%emt 0:00:36] B13: Caro-Kann: Exchange Variation and Panov-Botvinnik Attack.} Bf5 {[%emt 0:00:32]} 9. Be2 {[%emt 0:00:13]} e6 {[%emt 0:01:31] [#]} 10. Qa4 $146 {[%emt 0:31:19]} ({Predecessor:} 10. Re1 h6 11. Nbd2 Bd6 12. Nf1 O-O-O 13. Ne3 Kb8 14. b4 g5 15. Nxf5 exf5 16. Qd3 {0-1 (60) Hansen,E (2606)-Van Foreest,J (2714) Oslo 2022}) 10... Be7 {[%emt 0:20:31]} 11. Bb5 {[%emt 0:17:43]} Nd7 {[%emt 0:12:09]} 12. Re1 {[%emt 0:07:57]} a6 {[%emt 0:05:59]} 13. Bf1 {[%emt 0:04:37]} h5 $36 {[%emt 0:06:12][%mdl 2048] Black is pushing.} 14. b4 {[%emt 0:07:52]} (14. Qd1 $11) 14... Kf8 {[%emt 0:02:46]} 15. b5 {[%emt 0:10:54]} (15. Bg5 $15) 15... Nb6 $17 {[%emt 0:02:54]} 16. Qd1 {[%emt 0:00:32]} axb5 {[%emt 0:00:22]} 17. Bxb5 {[%emt 0:00:13]} Kg7 {[%emt 0:07:31]} 18. a4 {[%emt 0:02:37]} Na5 {[%emt 0:08:16][%cal Bc6a5,Ba5c4,Bc4d6,Bd6e4][%mdl 32]} 19. Ba3 {[%emt 0:00:30] [#]} (19. Bf1 $142) 19... Bxa3 $1 {[%emt 0:02:55]} 20. Rxa3 {[%emt 0:00:09]} Nac4 {[%emt 0:00:46]} 21. Ra2 {[%emt 0:02:07]} Nd6 {[%emt 0:01:54]} 22. Qb3 {[%emt 0:02:46]} Rhc8 {[%emt 0:03:16]} (22... Ra5 $142 {[%cal Ob6a4]} 23. Na3 Rc8) 23. Bf1 {[%emt 0:06:53]} Nbc4 24. Na3 {[%emt 0:01:11]} Nxa3 {[%emt 0:09:05]} 25. Rxa3 {[%emt 0:00:10]} Ne4 26. Re3 {[%emt 0:02:06]} g5 {[%emt 0:03:24][%cal Bg6g5,Bg5g4][%mdl 32]} 27. Bd3 {[%emt 0:01:38]} g4 {[%emt 0:03:23]} 28. Bxe4 {[%emt 0:00:38]} dxe4 {[%emt 0:00:38]} 29. Nh4 {[%emt 0:00:25]} Bh7 {[%emt 0:00:41]} 30. hxg4 {[%emt 0:00:30]} hxg4 {[%emt 0:00:35]} 31. g3 {[%emt 0:00:49]} Ra6 {[%emt 0:00:29]} 32. Qd1 {[%emt 0:00:21]} Bf5 {[%emt 0:00:24]} 33. Rb3 {[%emt 0:00:31]} Rc6 {[%emt 0:00:52]} (33... Rxa4 $11 34. Re1 Qc4) 34. Rb5 {[%emt 0:00:15] White is more active.} (34. d5 $14 Rc5 35. Qd4+ f6 36. Rxe4 Bxe4 37. Qxe4 Rxd5 38. Qg6+ (38. Qxg4+ Kf7 $11) 38... Kh8 39. Qxf6+ Qg7 40. Qxe6 Rd1+ 41. Kg2) 34... Rxc3 $11 {[%emt 0:00:38] The position is equal.} ({Much less strong is} 34... Qd7 35. Qd2 $14) 35. Rxc3 {[%emt 0:00:32]} Qxc3 {[%emt 0:00:03]} 36. Nxf5+ {[%emt 0:00:26]} exf5 {[%emt 0:00:07]} 37. Rxf5 {[%emt 0:00:03]} Qc1 {[%emt 0:00:43]} 38. Qxc1 {[%emt 0:00:08]} Rxc1+ {[%emt 0:00:04] KR-KR} 39. Kg2 {[%emt 0:00:03]} Kg6 {[%emt 0:01:05]} 40. Rb5 {[%emt 0:00:25]} Rc4 {[%emt 0:00:23]} 41. a5 {[%emt 0:30:43]} Rxd4 {[%emt 0:06:07]} 42. Rxb7 {[%emt 0:00:00]} Ra4 {[%emt 0:00:32]} 43. Re7 {[%emt 0:00:32] Weighted Error Value: White=0.12 (very precise) /Black=0.11 (very precise)} 1/2-1/2

[Event "26th Womens ECCC 2022"]
[Site "Mayrhofen"]
[Date "2022.10.06"]
[Round "4.15"]
[White "Arakhamia-Grant, Ketevan"]
[Black "Doluhanova, Evgeniya"]
[Result "1/2-1/2"]
[ECO "C65"]
[WhiteElo "2333"]
[BlackElo "2264"]
[Annotator "TA"]
[PlyCount "57"]
[EventDate "2022.10.03"]
[EventType "team-tourn"]
[EventCountry "AUT"]
[SourceTitle "playchess.com"]
[Source "ChessBase"]
[SourceQuality "1"]
[TimeControl "40/5400+30:1800+30"]

{[%evp 9,57,27,25,16,22,8,14,-13,0,-11,-3,-34,5,-19,11,0,0,0,11,15,27,21,29,23,21,28,66,61,66,70,71,64,61,33,33,38,41,36,28,38,47,44,37,42,52,0,26,0,72,0]} 1. e4 {[%emt 0:00:03]} e5 {[%emt 0:00:16]} 2. Nf3 {[%emt 0:00:11]} Nc6 {[%emt 0:00:04]} 3. Bb5 {[%emt 0:00:21]} Nf6 {[%emt 0:00:16]} 4. d3 {[%emt 0:00:16]} Bc5 {[%emt 0:00:19]} 5. Bxc6 {[%emt 0:01:15]} dxc6 {[%emt 0:03:23]} 6. Nbd2 {[%emt 0:00:16] C65: Ruy Lopez: Berlin Defence (3...Nf6), unusual lines and 4 0-0 Bc5.} Be6 {[%emt 0:02:16]} 7. Qe2 {[%emt 0:00:56]} Nd7 {[%emt 0:00:42]} 8. Nc4 {[%emt 0:02:10] The position is equal.} f6 {[%emt 0:02:20]} 9. Bd2 {[%emt 0:00:46]} Qe7 {[%emt 0:00:58] [#]} 10. a3 $146 {[%emt 0:05:58]} ({Predecessor:} 10. Ne3 Bxe3 11. Qxe3 c5 12. O-O O-O 13. Nh4 Rad8 14. f4 exf4 15. Qxf4 Ne5 16. Bc3 Nc6 17. Rae1 Qd6 18. Qxd6 {½-½ (18) Lobanov,S (2457)-Sargsyan,S (2431) Jermuk 2017}) 10... a6 {[%emt 0:03:50]} (10... Bxc4 $5 11. dxc4 a5 $15) 11. Ne3 {[%emt 0:04:04]} Bxe3 {[%emt 0:19:27]} 12. Bxe3 {[%emt 0:01:28][%cal Bd2e3,Be3d4,Bd4c3][%mdl 32]} Bg4 {[%emt 0:00:27]} 13. h3 {[%emt 0:09:15]} Bxf3 {[%emt 0:00:38]} 14. Qxf3 {[%emt 0:00:10]} Nc5 {[%emt 0:00:24][%cal Bd7c5,Bc5e6,Be6g5][%mdl 32]} 15. O-O-O {[%emt 0:11:06]} Ne6 {[%emt 0:00:45]} 16. d4 {[%emt 0:01:11]} exd4 {[%emt 0:03:44]} 17. Bxd4 {[%emt 0:00:14]} Ng5 {[%emt 0:15:31]} 18. Qf5 {[%emt 0:11:39]} Ne6 {[%emt 0:05:02] Against Bc5} 19. Bc3 {[%emt 0:23:39]} O-O {[%emt 0:02:52]} 20. h4 {[%emt 0:00:40] White is much more active.} Rad8 {[%emt 0:06:32]} 21. e5 {[%emt 0:07:15]} fxe5 {[%emt 0:06:49]} 22. Qxe5 {[%emt 0:00:42] [#] Rxd8 is the strong threat.} Qf7 {[%emt 0:00:24]} 23. g3 {[%emt 0:02:15]} Rfe8 {[%emt 0:04:18][%cal Oe6d4]} 24. Rxd8 {[%emt 0:13:19]} Nxd8 {[%emt 0:00:34]} 25. Qd4 {[%emt 0:00:40]} Ne6 {[%emt 0:00:42]} 26. Qe3 {[%emt 0:00:32]} Nf8 {[%emt 0:01:09]} 27. Qd4 {[%emt 0:01:32]} (27. Qa7 $5 {[%cal Ra7b7]}) 27... Ne6 {[%emt 0:04:36]} 28. Qe3 {[%emt 0:00:55]} (28. Qd2 $11) 28... Nf8 $16 {[%emt 0:00:30]} 29. Qd4 {[%emt 0:00:50] Weighted Error Value: White=0.13 (very precise) /Black=0.08 (flawless)} ({White should play} 29. Qa7 $16) 1/2-1/2

[Event "26th Womens ECCC 2022"]
[Site "Mayrhofen"]
[Date "2022.10.06"]
[Round "4.16"]
[White "Tarleva, Diana"]
[Black "Hunt, Harriet V"]
[Result "0-1"]
[ECO "B22"]
[WhiteElo "2175"]
[BlackElo "2359"]
[Annotator "TA"]
[PlyCount "60"]
[EventDate "2022.10.03"]
[EventType "team-tourn"]
[EventCountry "AUT"]
[SourceTitle "playchess.com"]
[Source "ChessBase"]
[SourceQuality "1"]
[TimeControl "40/5400+30:1800+30"]

{[%evp 14,60,48,22,21,0,10,0,0,13,7,22,6,-10,0,-58,0,-133,-140,-154,-161,-169,-150,-133,-130,-165,-157,-582,-567,-749,-360,-349,-305,-299,-296,-293,-245,-266,-251,-400,-406,-403,-401,-407,-387,-402,-400,-383,-369]} 1. e4 {[%emt 0:00:10]} c5 {[%emt 0:00:07]} 2. c3 {[%emt 0:00:05]} d5 {[%emt 0:02:01]} 3. exd5 {[%emt 0:00:31]} Qxd5 {[%emt 0:00:14]} 4. Na3 {[%emt 0:00:03][%cal Bb1a3,Ba3b5,Bb5d6][%mdl 32]} Nf6 {[%emt 0:10:25]} 5. Nf3 {[%emt 0:00:24]} e6 {[%emt 0:07:09]} 6. d4 {[%emt 0:04:04]} cxd4 {[%emt 0:03:06]} 7. Nb5 {[%emt 0:00:45]} Na6 {[%emt 0:00:40]} 8. Qxd4 {[%emt 0:04:04]} Be7 {[%emt 0:07:31] [#] B22: Sicilian: 2 c3.} 9. Bf4 $146 {[%emt 0:10:09]} ({Predecessor:} 9. Be3 b6 10. Be2 Bb7 11. O-O O-O 12. Rfd1 Qxd4 13. Bxd4 Nc5 14. Be5 Nce4 15. h3 Bc5 16. Bd4 {1-0 (51) Pavasovic,D (2475)-Moldobaev,E (2490) Elista 1998}) 9... O-O {[%emt 0:06:01]} 10. Qxd5 {[%emt 0:03:39]} Nxd5 {[%emt 0:01:45] The position is equal.} 11. Bd6 {[%emt 0:01:19]} Bxd6 {[%emt 0:05:21]} 12. Nxd6 {[%emt 0:00:03]} Nc5 {[%emt 0:00:35]} 13. Bc4 {[%emt 0:05:18]} Rd8 {[%emt 0:06:16][%cal Bf8d8,Bd8d6,Bd6d2][%mdl 32]} 14. Bxd5 {[%emt 0:23:52]} (14. Nxc8 $11 Raxc8 15. Rb1) 14... Nd3+ {[%emt 0:15:06]} ({Much worse is} 14... exd5 15. Nxc8 (15. b4 Nd3+ 16. Kd2 Nxf2 $17) 15... Re8+ 16. Kd2 Raxc8 17. Rhf1 $11) (14... Rxd6 $15 15. Bc4 b5) 15. Ke2 {[%emt 0:00:29]} (15. Kd2 $11 Nxf2 16. Nxc8 Nxh1 17. Ke2 (17. Ne7+ Kf8 $11) 17... exd5 18. Ne7+ Kf8 19. Nf5) 15... Nf4+ $17 {[%emt 0:00:13]} 16. Kf1 {[%emt 0:00:02]} Rxd6 {[%emt 0:00:21]} ({Don't play} 16... exd5 $6 17. Nxc8 (17. Re1 Be6 $15) 17... Raxc8 18. Rd1 $11) 17. Bc4 {[%emt 0:20:49]} b5 {[%emt 0:02:27]} 18. Be2 {[%emt 0:01:12]} Ba6 {[%emt 0:05:42] Black is more active.} 19. Rc1 {[%emt 0:17:21]} Rc8 {[%emt 0:02:58][%cal Oe6e5]} 20. Ne1 $2 {[%emt 0:00:22] Now White is beyond hope.} (20. h4 $17 {is a better chance.}) 20... Rd2 $1 $19 {[%emt 0:02:39][%csl LRb2,LRe2]} 21. Rc2 {[%emt 0:03:01]} Rcd8 {[%emt 0:00:47]} (21... Rxe2 $142 22. Rxe2 b4) 22. Bf3 {[%emt 0:01:18]} b4+ {[%emt 0:05:25]} 23. Kg1 {[%emt 0:00:05]} bxc3 {[%emt 0:01:39]} 24. bxc3 {[%emt 0:00:50]} Be2 $40 {[%emt 0:06:44][%mdl 128] [#] And now ...Rxc2 would win. Black attacks with force.} 25. Rxd2 {[%emt 0:02:22]} Rxd2 {[%emt 0:00:05]} 26. Bxe2 {[%emt 0:00:35]} (26. h4 $142) 26... Nxe2+ {[%emt 0:00:18] KRN-KRN. Black is winning.} 27. Kf1 {[%emt 0:00:01]} Nxc3 {[%emt 0:00:10]} 28. a3 {[%emt 0:00:22]} Nd1 {[%emt 0:03:39]} 29. Nf3 {[%emt 0:00:13]} Rxf2+ {[%emt 0:00:11]} 30. Ke1 {[%emt 0:00:26] [#]} Ra2 $1 {[%emt 0:00:07] Weighted Error Value: White=0.56/Black=0.32} 0-1

[Event "26th Womens ECCC 2022"]
[Site "Mayrhofen"]
[Date "2022.10.06"]
[Round "4.17"]
[White "Katkov, Michelle"]
[Black "Rakhmangulova, Anastasiya"]
[Result "0-1"]
[ECO "B22"]
[WhiteElo "2219"]
[BlackElo "2261"]
[Annotator "TA"]
[PlyCount "100"]
[EventDate "2022.10.03"]
[EventType "team-tourn"]
[EventCountry "AUT"]
[SourceTitle "playchess.com"]
[Source "ChessBase"]
[SourceQuality "1"]
[TimeControl "40/5400+30:1800+30"]

{[%evp 16,100,9,16,10,8,10,18,17,0,-1,-14,-8,-10,-3,-12,0,-16,-14,-14,-19,-16,-9,-31,-12,-13,0,-22,-15,-1,0,-32,15,15,6,9,3,-7,-4,-7,-13,-32,-13,-17,-6,-43,-45,-87,-24,-103,-99,-111,-103,-131,-122,-145,-145,-189,-184,-184,-195,-208,-182,-178,-166,-238,-238,-227,-207,-397,-392,-377,-370,-363,-347,-777,-771,-662,-630,-920,-517,-920,-919,-29969,-29970,-29970,-7408]} 1. e4 {[%emt 0:00:02]} c5 {[%emt 0:00:04]} 2. c3 {[%emt 0:00:07]} Nf6 {[%emt 0:00:04]} 3. e5 {[%emt 0:00:03]} Nd5 {[%emt 0:00:04]} 4. d4 {[%emt 0:00:03]} cxd4 {[%emt 0:00:04]} 5. cxd4 {[%emt 0:00:03]} d6 {[%emt 0:00:03]} 6. Nf3 {[%emt 0:00:05]} Nc6 {[%emt 0:00:03]} 7. Bc4 {[%emt 0:00:04]} Nb6 {[%emt 0:00:03]} 8. Bb5 {[%emt 0:00:06]} Bd7 {[%emt 0:00:08]} 9. Nc3 {[%emt 0:02:26] 9.Nc3 is better than 9.exd6.} dxe5 {[%emt 0:00:15] B22: Sicilian: 2 c3.} 10. dxe5 {[%emt 0:01:44]} g6 {[%emt 0:00:07]} 11. O-O {[%emt 0:01:37]} Bg7 {[%emt 0:00:06] The position is equal.} 12. Bf4 {[%emt 0:02:51]} O-O {[%emt 0:01:50]} 13. h3 {[%emt 0:02:24]} a6 {[%emt 0:06:12]} 14. Bd3 {[%emt 0:01:00]} Qc7 {[%emt 0:21:23]} 15. Qe2 {[%emt 0:03:27]} Rad8 {[%emt 0:07:19]} 16. Rac1 {[%emt 0:13:20]} Be6 {[%emt 0:03:12] [#]} 17. b3 $146 {[%emt 0:08:34]} (17. Ng5 {seems wilder.} Nd4 18. Qe3 Nc4 19. Bxc4 Qxc4 20. Rfd1) ({Predecessor:} 17. Qe3 Bc4 18. e6 Qc8 19. Rfd1 Bxd3 20. Qxb6 Qxe6 21. Qxb7 Rd7 22. Qb6 Nd4 23. Qxe6 Nxf3+ 24. gxf3 fxe6 {0-1 (50) Ghaem Maghami,E (2540)-Firouzja,A (2618) Moscow 2019}) 17... Nd5 {[%emt 0:08:39] Prevents Qe3.} 18. Nxd5 {[%emt 0:01:50]} Bxd5 {[%emt 0:00:05]} 19. Be4 {[%emt 0:21:18]} Bxe4 {[%emt 0:06:54]} 20. Qxe4 {[%emt 0:00:05]} Qa5 {[%emt 0:00:08]} 21. a4 {[%emt 0:03:52]} Qd5 {[%emt 0:05:24]} 22. Qe3 {[%emt 0:01:09]} Qd3 {[%emt 0:03:48]} 23. Qb6 {[%emt 0:01:19]} Nd4 {[%emt 0:00:36]} (23... Rd7 $1 $15) 24. Nxd4 $11 {[%emt 0:03:08]} Qxd4 {[%emt 0:00:18]} (24... Rxd4 {is more complex.} 25. Be3 Rd7 26. e6 Bd4) 25. Qxd4 {[%emt 0:01:54]} Rxd4 {[%emt 0:00:04]} 26. Bg3 {[%emt 0:07:10]} Rb4 {[%emt 0:02:03]} 27. Rc3 {[%emt 0:00:57]} Rd8 {[%emt 0:01:56]} 28. Re1 {[%emt 0:04:48]} h5 {[%emt 0:01:56]} 29. f4 {[%emt 0:03:07]} Bh6 {[%emt 0:05:51]} 30. e6 {[%emt 0:04:08]} f6 {[%emt 0:03:27]} ({But not} 30... Bxf4 31. exf7+ Kxf7 32. Bxf4 Rxf4 33. Rc7 $14) 31. Rf1 {[%emt 0:01:05]} h4 {[%emt 0:04:37]} (31... Kf8 $17) 32. Bxh4 {[%emt 0:01:06]} (32. Bf2 $1 $11 {keeps the balance.}) 32... Bxf4 $17 {[%emt 0:00:07] Black continues to play with concentration.} 33. Bf2 {[%emt 0:06:16]} Be5 {[%emt 0:01:50]} 34. Rf3 {[%emt 0:00:16]} Re4 {[%emt 0:00:40]} 35. Rc1 {[%emt 0:02:09]} Rd6 {[%emt 0:03:11]} 36. Re3 {[%emt 0:02:47]} Rxe3 {[%emt 0:01:06]} 37. Bxe3 {[%emt 0:00:05]} Rxe6 $19 {[%emt 0:00:17][%mdl 4096] Endgame KRB-KRB} 38. Kf2 {[%emt 0:00:59]} f5 {[%emt 0:03:01]} 39. Kf3 {[%emt 0:00:35]} Kf7 {[%emt 0:02:33]} 40. Rc4 {[%emt 0:00:47]} (40. Rc5 $142) 40... Rc6 {[%emt 0:03:19]} 41. Rb4 {[%emt 0:04:02]} Rc7 {[%emt 0:01:51]} 42. g4 $2 {[%emt 0:04:08]} (42. Rb6) 42... Bc3 {[%emt 0:05:00]} 43. Rc4 {[%emt 0:01:58]} Rxc4 {[%emt 0:01:23]} 44. bxc4 {[%emt 0:00:05] KB-KB} e5 {[%emt 0:00:13][%cal Be7e5,Be5e4][%mdl 32]} 45. h4 $2 {[%emt 0:01:38]} (45. Bb6 Bb4 46. Ke2) 45... e4+ {[%emt 0:02:22]} 46. Kf4 {[%emt 0:01:31]} Kf6 {[%emt 0:00:39][%csl Gf6][%cal Rc3e5] [#]} 47. Bc1 {[%emt 0:04:29]} Be5+ {[%emt 0:11:34]} 48. Ke3 {[%emt 0:00:06]} g5 {[%emt 0:00:40][%cal Bg6g5,Bg5h4][%mdl 32]} 49. Kf2 {[%emt 0:13:44]} gxh4 {[%emt 0:02:49]} 50. gxf5 {[%emt 0:00:37]} Kxf5 {[%emt 0:00:08] Weighted Error Value: White=0.49/Black=0.07 (flawless)} (50... h3 $142 51. Bd2 Kxf5 52. Kg1 Kg4 53. Bh6 Bd4+ 54. Kh2 e3 55. a5 b6 56. axb6 Bxb6 57. Kh1 a5 58. Bg7 e2 59. Bc3 a4 60. c5 Bxc5 61. Be1 a3 62. Bc3 {[#]} Bd4 $1 {[%mdl 512]} 63. Be1 a2 64. Kh2 a1=Q 65. Kh1 Qxe1+ 66. Kh2 Qg1#) 0-1